[Event "Titled Tuesday Blitz March 07 Late 2023"]
[White "Lewtak, Damian"]
[Black "Krzyzanowski, Marcin"]
[WhiteFideId "1141724"]
[BlackFideId "1132199"]
[WhiteElo "2302"]
[BlackElo "2471"]
[Result "1/2-1/2"]
[Round "11"]
[TimeControl "180+2"]
[Date "2023.03.07"]
[WhiteClock "0:00:10"]
[BlackClock "0:00:13"]

1. e4 {[%clk 0:03:00]}  c6 {[%clk 0:02:56]} 2. Nf3 {[%clk 0:03:00]}  d5 {[%clk 0:02:56]} 3. d3 {[%clk 0:03:01]}  Qc7 {[%clk 0:02:50]} 4. g3 {[%clk 0:03:00]}  e5 {[%clk 0:02:48]} 5. Bg2 {[%clk 0:03:00]}  Nf6 {[%clk 0:02:48]} 6. exd5 {[%clk 0:03:00]}  cxd5 {[%clk 0:02:49]} 7. O-O {[%clk 0:03:00]}  Nc6 {[%clk 0:02:50]} 8. c4 {[%clk 0:02:56]}  dxc4 {[%clk 0:02:45]} 9. dxc4 {[%clk 0:02:52]}  Be6 {[%clk 0:02:42]} 10. b3 {[%clk 0:02:47]}  Rd8 {[%clk 0:02:38]} 11. Qe2 {[%clk 0:02:45]}  e4 {[%clk 0:02:34]} 12. Ng5 {[%clk 0:02:40]}  Qe5 {[%clk 0:02:31]} 13. Nxe6 {[%clk 0:02:35]}  Qxe6 {[%clk 0:02:24]} 14. Bb2 {[%clk 0:02:28]}  Nd4 {[%clk 0:02:21]} 15. Bxd4 {[%clk 0:02:27]}  Rxd4 {[%clk 0:02:22]} 16. Nc3 {[%clk 0:02:23]}  Bc5 {[%clk 0:02:17]} 17. Rad1 {[%clk 0:02:21]}  O-O {[%clk 0:02:05]} 18. Rxd4 {[%clk 0:02:15]}  Bxd4 {[%clk 0:02:06]} 19. Nxe4 {[%clk 0:02:15]}  Nxe4 {[%clk 0:02:03]} 20. Qxe4 {[%clk 0:02:15]}  Qxe4 {[%clk 0:02:02]} 21. Bxe4 {[%clk 0:02:16]}  b6 {[%clk 0:02:02]} 22. b4 {[%clk 0:02:04]}  Rc8 {[%clk 0:01:51]} 23. Bd5 {[%clk 0:01:54]}  Kf8 {[%clk 0:01:51]} 24. Rd1 {[%clk 0:01:48]}  Bc3 {[%clk 0:01:51]} 25. a3 {[%clk 0:01:48]}  a5 {[%clk 0:01:51]} 26. bxa5 {[%clk 0:01:22]}  Bxa5 {[%clk 0:01:52]} 27. Rd3 {[%clk 0:01:15]}  Rc7 {[%clk 0:01:51]} 28. h4 {[%clk 0:01:14]}  g6 {[%clk 0:01:49]} 29. Kg2 {[%clk 0:01:13]}  Kg7 {[%clk 0:01:41]} 30. f4 {[%clk 0:01:12]}  Re7 {[%clk 0:01:37]} 31. Kf3 {[%clk 0:01:07]}  Re1 {[%clk 0:01:33]} 32. Rb3 {[%clk 0:01:03]}  Rc1 {[%clk 0:01:29]} 33. g4 {[%clk 0:00:48]}  f5 {[%clk 0:01:19]} 34. gxf5 {[%clk 0:00:42]}  gxf5 {[%clk 0:01:19]} 35. Ke3 {[%clk 0:00:41]}  Kf6 {[%clk 0:01:13]} 36. a4 {[%clk 0:00:31]}  Rc2 {[%clk 0:01:07]} 37. Rd3 {[%clk 0:00:26]}  Rh2 {[%clk 0:01:06]} 38. Bf3 {[%clk 0:00:25]}  Rxh4 {[%clk 0:01:06]} 39. Rd6+ {[%clk 0:00:24]}  Ke7 {[%clk 0:01:06]} 40. Rc6 {[%clk 0:00:24]}  Rh2 {[%clk 0:01:05]} 41. Bd5 {[%clk 0:00:20]}  Bd2+ {[%clk 0:01:03]} 42. Kf3 {[%clk 0:00:21]}  Rh3+ {[%clk 0:00:35]} 43. Kg2 {[%clk 0:00:21]}  Ra3 {[%clk 0:00:35]} 44. Re6+ {[%clk 0:00:20]}  Kd8 {[%clk 0:00:32]} 45. Rxb6 {[%clk 0:00:17]}  Rxa4 {[%clk 0:00:30]} 46. Rb8+ {[%clk 0:00:15]}  Kc7 {[%clk 0:00:29]} 47. Rb7+ {[%clk 0:00:15]}  Kd6 {[%clk 0:00:28]} 48. Rxh7 {[%clk 0:00:15]}  Bxf4 {[%clk 0:00:28]} 49. Rf7 {[%clk 0:00:14]}  Ke5 {[%clk 0:00:27]} 50. Re7+ {[%clk 0:00:13]}  Kf6 {[%clk 0:00:26]} 51. Re6+ {[%clk 0:00:13]}  Kg5 {[%clk 0:00:27]} 52. Re8 {[%clk 0:00:12]}  Ra2+ {[%clk 0:00:26]} 53. Kf3 {[%clk 0:00:12]}  Ra3+ {[%clk 0:00:27]} 54. Kf2 {[%clk 0:00:12]}  Bd6 {[%clk 0:00:26]} 55. Re6 {[%clk 0:00:11]}  Bc5+ {[%clk 0:00:26]} 56. Ke2 {[%clk 0:00:11]}  Kg4 {[%clk 0:00:22]} 57. Rc6 {[%clk 0:00:11]}  Bd4 {[%clk 0:00:21]} 58. Kd2 {[%clk 0:00:10]}  f4 {[%clk 0:00:20]} 59. Rc8 {[%clk 0:00:10]}  Bf6 {[%clk 0:00:12]} 60. Rf8 {[%clk 0:00:10]}  Bg5 {[%clk 0:00:12]} 61. Kc2 {[%clk 0:00:08]}  f3 {[%clk 0:00:12]} 62. Bxf3+ {[%clk 0:00:07]}  Rxf3 {[%clk 0:00:11]} 63. Rxf3 {[%clk 0:00:08]}  Kxf3 {[%clk 0:00:12]} 64. c5 {[%clk 0:00:08]}  Bf4 {[%clk 0:00:12]} 65. c6 {[%clk 0:00:09]}  Be5 {[%clk 0:00:12]} 66. c7 {[%clk 0:00:10]}  Bxc7 {[%clk 0:00:13]} 1/2-1/2


[Site "https://www.chess.com"]

[Event "Titled Tuesday Blitz March 07 Late 2023"]
[White "Poliakova, Varvara"]
[Black "EREBUNI91"]
[WhiteFideId "13518313"]
[WhiteElo "2075"]
[BlackElo "2741"]
[Result "1-0"]
[Round "11"]
[TimeControl "180+2"]
[Date "2023.03.07"]
[WhiteClock "0:02:01"]
[BlackClock "0:02:42"]

1. e4 {[%clk 0:02:58]}  c5 {[%clk 0:03:00]} 2. Nf3 {[%clk 0:02:57]}  d6 {[%clk 0:03:00]} 3. d4 {[%clk 0:02:53]}  cxd4 {[%clk 0:03:01]} 4. Nxd4 {[%clk 0:02:53]}  Nf6 {[%clk 0:03:01]} 5. Nc3 {[%clk 0:02:44]}  a6 {[%clk 0:03:01]} 6. h3 {[%clk 0:02:44]}  e5 {[%clk 0:03:01]} 7. Nde2 {[%clk 0:02:44]}  h5 {[%clk 0:03:02]} 8. g3 {[%clk 0:02:42]}  Be6 {[%clk 0:03:02]} 9. Bg2 {[%clk 0:02:38]}  b5 {[%clk 0:03:02]} 10. a3 {[%clk 0:02:38]}  Nbd7 {[%clk 0:03:03]} 11. O-O {[%clk 0:02:37]}  Rc8 {[%clk 0:03:03]} 12. Be3 {[%clk 0:02:33]}  Be7 {[%clk 0:03:03]} 13. Qd2 {[%clk 0:02:28]}  Nb6 {[%clk 0:03:01]} 14. b3 {[%clk 0:02:25]}  O-O {[%clk 0:02:54]} 15. Rad1 {[%clk 0:02:22]}  Qc7 {[%clk 0:02:52]} 16. f4 {[%clk 0:02:16]}  Rfd8 {[%clk 0:02:42]} 17. f5 {[%clk 0:02:03]}  Bd7 {[%clk 0:02:42]} 18. Bf3 {[%clk 0:02:01]} 1-0


[Site "https://www.chess.com"]

[Event "Titled Tuesday Blitz March 07 Late 2023"]
[White "Shapiro, Viktor"]
[Black "Timmermans, Mark"]
[WhiteFideId "4175700"]
[BlackFideId "1026399"]
[WhiteElo "2152"]
[BlackElo "2460"]
[Result "0-1"]
[Round "11"]
[TimeControl "180+2"]
[Date "2023.03.07"]
[WhiteClock "0:00:19"]
[BlackClock "0:00:48"]

1. c4 {[%clk 0:03:00]}  Nf6 {[%clk 0:02:55]} 2. Nc3 {[%clk 0:03:00]}  e6 {[%clk 0:02:55]} 3. g3 {[%clk 0:03:01]}  d5 {[%clk 0:02:55]} 4. Bg2 {[%clk 0:03:01]}  Be7 {[%clk 0:02:55]} 5. Nf3 {[%clk 0:03:01]}  O-O {[%clk 0:02:55]} 6. O-O {[%clk 0:03:02]}  dxc4 {[%clk 0:02:54]} 7. Qa4 {[%clk 0:03:01]}  a6 {[%clk 0:02:52]} 8. Qxc4 {[%clk 0:03:01]}  b5 {[%clk 0:02:52]} 9. Qb3 {[%clk 0:03:01]}  Bb7 {[%clk 0:02:53]} 10. d3 {[%clk 0:02:58]}  Nbd7 {[%clk 0:02:53]} 11. Bf4 {[%clk 0:02:44]}  Nd5 {[%clk 0:02:35]} 12. Nxd5 {[%clk 0:02:43]}  Bxd5 {[%clk 0:02:36]} 13. Qc2 {[%clk 0:02:43]}  Rc8 {[%clk 0:02:35]} 14. e4 {[%clk 0:02:40]}  Ba8 {[%clk 0:02:34]} 15. a4 {[%clk 0:02:39]}  b4 {[%clk 0:02:30]} 16. Rac1 {[%clk 0:02:36]}  c5 {[%clk 0:02:28]} 17. Rfd1 {[%clk 0:02:26]}  g5 {[%clk 0:02:13]} 18. Be3 {[%clk 0:02:23]}  e5 {[%clk 0:02:13]} 19. Nd2 {[%clk 0:02:16]}  h6 {[%clk 0:02:04]} 20. Nc4 {[%clk 0:02:16]}  Re8 {[%clk 0:01:54]} 21. f4 {[%clk 0:02:09]}  exf4 {[%clk 0:01:52]} 22. gxf4 {[%clk 0:02:09]}  Nf8 {[%clk 0:01:47]} 23. Qf2 {[%clk 0:01:56]}  gxf4 {[%clk 0:01:44]} 24. Bxf4 {[%clk 0:01:56]}  Bg5 {[%clk 0:01:44]} 25. Qg3 {[%clk 0:01:55]}  Ng6 {[%clk 0:01:42]} 26. Bxg5 {[%clk 0:01:52]}  hxg5 {[%clk 0:01:43]} 27. Nd6 {[%clk 0:01:47]}  Nf4 {[%clk 0:01:43]} 28. Rc2 {[%clk 0:00:51]}  Qxd6 {[%clk 0:01:43]} 29. Qxg5+ {[%clk 0:00:51]}  Ng6 {[%clk 0:01:43]} 30. Bh3 {[%clk 0:00:45]}  Rc7 {[%clk 0:01:40]} 31. Bf5 {[%clk 0:00:42]}  Qf4 {[%clk 0:01:30]} 32. Qg2 {[%clk 0:00:40]}  Qxf5 {[%clk 0:01:15]} 33. exf5 {[%clk 0:00:39]}  Bxg2 {[%clk 0:01:16]} 34. Rxg2 {[%clk 0:00:38]}  Kg7 {[%clk 0:01:11]} 35. fxg6 {[%clk 0:00:39]}  fxg6 {[%clk 0:01:12]} 36. d4 {[%clk 0:00:36]}  Rd8 {[%clk 0:01:11]} 37. d5 {[%clk 0:00:33]}  Rcd7 {[%clk 0:01:10]} 38. Rgd2 {[%clk 0:00:33]}  c4 {[%clk 0:01:10]} 39. Kf2 {[%clk 0:00:27]}  Kf6 {[%clk 0:01:08]} 40. Ke3 {[%clk 0:00:25]}  Ke5 {[%clk 0:01:08]} 41. Rd4 {[%clk 0:00:18]}  Rc8 {[%clk 0:01:02]} 42. Re4+ {[%clk 0:00:18]}  Kf5 {[%clk 0:00:54]} 43. Rf1+ {[%clk 0:00:18]}  Kg5 {[%clk 0:00:54]} 44. Kd4 {[%clk 0:00:18]}  c3 {[%clk 0:00:53]} 45. Re5+ {[%clk 0:00:18]}  Kh6 {[%clk 0:00:53]} 46. bxc3 {[%clk 0:00:19]}  bxc3 {[%clk 0:00:53]} 47. Rc1 {[%clk 0:00:19]}  c2 {[%clk 0:00:53]} 48. Re2 {[%clk 0:00:19]}  Rcd8 {[%clk 0:00:52]} 49. Rexc2 {[%clk 0:00:20]}  Rxd5+ {[%clk 0:00:53]} 50. Ke3 {[%clk 0:00:21]}  Re8+ {[%clk 0:00:51]} 51. Kf2 {[%clk 0:00:21]}  Rf5+ {[%clk 0:00:52]} 52. Kg2 {[%clk 0:00:21]}  Re4 {[%clk 0:00:52]} 53. Rc4 {[%clk 0:00:21]}  Re2+ {[%clk 0:00:52]} 54. Kg3 {[%clk 0:00:21]}  Rg5+ {[%clk 0:00:51]} 55. Kf3 {[%clk 0:00:21]}  Rxh2 {[%clk 0:00:51]} 56. Rc8 {[%clk 0:00:20]}  Rh3+ {[%clk 0:00:46]} 57. Kf2 {[%clk 0:00:20]}  Rf5+ {[%clk 0:00:45]} 58. Kg2 {[%clk 0:00:20]}  Ra3 {[%clk 0:00:46]} 59. R1c4 {[%clk 0:00:18]}  Ra5 {[%clk 0:00:44]} 60. R8c6 {[%clk 0:00:14]}  R3xa4 {[%clk 0:00:44]} 61. Rxa4 {[%clk 0:00:14]}  Rxa4 {[%clk 0:00:45]} 62. Kf3 {[%clk 0:00:14]}  Kh5 {[%clk 0:00:44]} 63. Rc5+ {[%clk 0:00:14]}  g5 {[%clk 0:00:45]} 64. Rc8 {[%clk 0:00:15]}  Rf4+ {[%clk 0:00:44]} 65. Kg3 {[%clk 0:00:15]}  Rf6 {[%clk 0:00:45]} 66. Rh8+ {[%clk 0:00:15]}  Rh6 {[%clk 0:00:46]} 67. Ra8 {[%clk 0:00:16]}  Rb6 {[%clk 0:00:45]} 68. Rh8+ {[%clk 0:00:16]}  Kg6 {[%clk 0:00:45]} 69. Rg8+ {[%clk 0:00:16]}  Kh6 {[%clk 0:00:46]} 70. Rh8+ {[%clk 0:00:17]}  Kg7 {[%clk 0:00:46]} 71. Ra8 {[%clk 0:00:18]}  Kf6 {[%clk 0:00:43]} 72. Rf8+ {[%clk 0:00:17]}  Ke5 {[%clk 0:00:44]} 73. Kg4 {[%clk 0:00:17]}  Kd4 {[%clk 0:00:41]} 74. Kxg5 {[%clk 0:00:17]}  Kc4 {[%clk 0:00:41]} 75. Kf4 {[%clk 0:00:17]}  a5 {[%clk 0:00:42]} 76. Ra8 {[%clk 0:00:17]}  Kb4 {[%clk 0:00:42]} 77. Ke3 {[%clk 0:00:17]}  Rd6 {[%clk 0:00:42]} 78. Rb8+ {[%clk 0:00:17]}  Ka3 {[%clk 0:00:42]} 79. Rb5 {[%clk 0:00:16]}  a4 {[%clk 0:00:43]} 80. Ke2 {[%clk 0:00:16]}  Ka2 {[%clk 0:00:43]} 81. Ke1 {[%clk 0:00:17]}  a3 {[%clk 0:00:43]} 82. Ke2 {[%clk 0:00:17]}  Ka1 {[%clk 0:00:44]} 83. Ke1 {[%clk 0:00:17]}  a2 {[%clk 0:00:44]} 84. Ke2 {[%clk 0:00:18]}  Rd8 {[%clk 0:00:45]} 85. Ke1 {[%clk 0:00:18]}  Rh8 {[%clk 0:00:45]} 86. Kd1 {[%clk 0:00:18]}  Rh1+ {[%clk 0:00:46]} 87. Kc2 {[%clk 0:00:19]}  Rb1 {[%clk 0:00:46]} 88. Ra5 {[%clk 0:00:19]}  Rb2+ {[%clk 0:00:47]} 89. Kc1 {[%clk 0:00:19]}  Rb7 {[%clk 0:00:47]} 90. Kc2 {[%clk 0:00:19]}  Rc7+ {[%clk 0:00:48]} 91. Kd2 {[%clk 0:00:19]}  Kb2 {[%clk 0:00:47]} 92. Rb5+ {[%clk 0:00:19]}  Ka3 {[%clk 0:00:47]} 93. Ra5+ {[%clk 0:00:19]}  Kb3 {[%clk 0:00:48]} 94. Rb5+ {[%clk 0:00:19]}  Ka4 {[%clk 0:00:48]} 95. Rb8 {[%clk 0:00:19]}  Ra7 {[%clk 0:00:48]} 0-1


[Site "https://www.chess.com"]

[Event "Titled Tuesday Blitz March 07 Late 2023"]
[White "Nilsen, Tobias Lang"]
[Black "Korchmar, Vasiliy"]
[WhiteFideId "1521624"]
[BlackFideId "24131750"]
[WhiteElo "2183"]
[BlackElo "2370"]
[Result "0-1"]
[Round "11"]
[TimeControl "180+2"]
[Date "2023.03.07"]
[WhiteClock "0:02:25"]
[BlackClock "0:01:59"]

1. e4 {[%clk 0:03:00]}  c5 {[%clk 0:03:00]} 2. Nf3 {[%clk 0:03:01]}  d6 {[%clk 0:03:00]} 3. d4 {[%clk 0:03:02]}  cxd4 {[%clk 0:03:01]} 4. Nxd4 {[%clk 0:03:03]}  Nf6 {[%clk 0:03:02]} 5. Nc3 {[%clk 0:03:03]}  Nc6 {[%clk 0:03:03]} 6. Bg5 {[%clk 0:03:01]}  Bd7 {[%clk 0:03:03]} 7. Qd2 {[%clk 0:03:01]}  a6 {[%clk 0:03:02]} 8. f3 {[%clk 0:02:59]}  e6 {[%clk 0:03:01]} 9. O-O-O {[%clk 0:02:59]}  Be7 {[%clk 0:02:58]} 10. h4 {[%clk 0:02:59]}  Nxd4 {[%clk 0:02:55]} 11. Qxd4 {[%clk 0:02:59]}  b5 {[%clk 0:02:56]} 12. a3 {[%clk 0:02:58]}  Qc7 {[%clk 0:02:54]} 13. Kb1 {[%clk 0:02:58]}  O-O {[%clk 0:02:50]} 14. Qd2 {[%clk 0:02:58]}  Rfd8 {[%clk 0:02:08]} 15. Bd3 {[%clk 0:02:53]}  Rab8 {[%clk 0:02:07]} 16. Ne2 {[%clk 0:02:52]}  a5 {[%clk 0:02:06]} 17. g4 {[%clk 0:02:51]}  b4 {[%clk 0:02:06]} 18. axb4 {[%clk 0:02:52]}  axb4 {[%clk 0:02:06]} 19. Bxf6 {[%clk 0:02:52]}  Bxf6 {[%clk 0:02:06]} 20. g5 {[%clk 0:02:53]}  Bc3 {[%clk 0:02:03]} 21. Qf4 {[%clk 0:02:32]}  Qa5 {[%clk 0:02:03]} 22. Nxc3 {[%clk 0:02:26]}  bxc3 {[%clk 0:02:03]} 23. b3 {[%clk 0:02:27]}  Qa3 {[%clk 0:01:59]} 24. Qc1 {[%clk 0:02:25]}  Rxb3+ {[%clk 0:01:59]} 0-1


[Site "https://www.chess.com"]

[Event "Titled Tuesday Blitz March 07 Late 2023"]
[White "Sokac, Marko"]
[Black "Martynov, Pavel"]
[WhiteFideId "14531356"]
[BlackFideId "4101260"]
[WhiteElo "2355"]
[BlackElo "2314"]
[Result "0-1"]
[Round "11"]
[TimeControl "180+2"]
[Date "2023.03.07"]
[WhiteClock "0:00:25"]
[BlackClock "0:00:29"]

1. e4 {[%clk 0:03:00]}  c5 {[%clk 0:02:59]} 2. a3 {[%clk 0:03:00]}  e6 {[%clk 0:02:59]} 3. b4 {[%clk 0:03:00]}  d5 {[%clk 0:02:59]} 4. exd5 {[%clk 0:03:00]}  Qxd5 {[%clk 0:03:00]} 5. Nc3 {[%clk 0:03:00]}  Qd8 {[%clk 0:02:59]} 6. Nf3 {[%clk 0:02:57]}  Nf6 {[%clk 0:02:58]} 7. Bb5+ {[%clk 0:02:56]}  Bd7 {[%clk 0:02:58]} 8. Bxd7+ {[%clk 0:02:52]}  Nbxd7 {[%clk 0:02:59]} 9. bxc5 {[%clk 0:02:50]}  Bxc5 {[%clk 0:03:00]} 10. O-O {[%clk 0:02:50]}  O-O {[%clk 0:03:00]} 11. d4 {[%clk 0:02:49]}  Bb6 {[%clk 0:02:55]} 12. Re1 {[%clk 0:02:48]}  Rc8 {[%clk 0:02:55]} 13. Ne2 {[%clk 0:02:46]}  Nd5 {[%clk 0:02:49]} 14. Qd3 {[%clk 0:02:43]}  Ba5 {[%clk 0:02:47]} 15. Bd2 {[%clk 0:02:35]}  Bxd2 {[%clk 0:02:47]} 16. Nxd2 {[%clk 0:02:35]}  N5b6 {[%clk 0:02:32]} 17. c4 {[%clk 0:02:34]}  Ne5 {[%clk 0:02:29]} 18. Qe4 {[%clk 0:02:32]}  Nexc4 {[%clk 0:02:27]} 19. Nxc4 {[%clk 0:02:31]}  Nxc4 {[%clk 0:02:19]} 20. Qxb7 {[%clk 0:02:31]}  Qa5 {[%clk 0:02:16]} 21. Qb4 {[%clk 0:01:51]}  Rfd8 {[%clk 0:02:10]} 22. Red1 {[%clk 0:01:43]}  Qa6 {[%clk 0:01:53]} 23. Ng3 {[%clk 0:01:32]}  Rb8 {[%clk 0:01:39]} 24. Qe7 {[%clk 0:01:32]}  Qd6 {[%clk 0:01:30]} 25. Qg5 {[%clk 0:01:28]}  h6 {[%clk 0:01:27]} 26. Qg4 {[%clk 0:01:26]}  Rb5 {[%clk 0:01:12]} 27. a4 {[%clk 0:01:22]}  Rg5 {[%clk 0:01:11]} 28. Qe2 {[%clk 0:01:20]}  Qd5 {[%clk 0:01:01]} 29. Rac1 {[%clk 0:01:19]}  Nd6 {[%clk 0:00:58]} 30. Rc5 {[%clk 0:01:18]}  Qb3 {[%clk 0:00:58]} 31. h4 {[%clk 0:01:01]}  Rd5 {[%clk 0:00:52]} 32. Rxd5 {[%clk 0:00:54]}  exd5 {[%clk 0:00:50]} 33. Rc1 {[%clk 0:00:45]}  Qxa4 {[%clk 0:00:48]} 34. Rc7 {[%clk 0:00:43]}  Qxd4 {[%clk 0:00:45]} 35. Qe7 {[%clk 0:00:41]}  Qf6 {[%clk 0:00:37]} 36. Qxf6 {[%clk 0:00:37]}  gxf6 {[%clk 0:00:38]} 37. Rxa7 {[%clk 0:00:38]}  d4 {[%clk 0:00:34]} 38. Kf1 {[%clk 0:00:38]}  d3 {[%clk 0:00:34]} 39. Ke1 {[%clk 0:00:33]}  Nc4 {[%clk 0:00:32]} 40. Ra1 {[%clk 0:00:27]}  d2+ {[%clk 0:00:29]} 41. Ke2 {[%clk 0:00:25]}  Nb2 {[%clk 0:00:29]} 0-1


[Site "https://www.chess.com"]

[Event "Titled Tuesday Blitz March 07 Late 2023"]
[White "Vlassov, Nikolai"]
[Black "Erzhanov, Arman"]
[WhiteFideId "4103360"]
[BlackFideId "4138821"]
[WhiteElo "2324"]
[BlackElo "2138"]
[Result "1-0"]
[Round "11"]
[TimeControl "180+2"]
[Date "2023.03.07"]
[WhiteClock "0:00:07"]
[BlackClock "0:00:15"]

1. e4 {[%clk 0:03:00]}  d6 {[%clk 0:02:59]} 2. f4 {[%clk 0:02:59]}  d5 {[%clk 0:02:57]} 3. exd5 {[%clk 0:02:59]}  Nf6 {[%clk 0:02:57]} 4. Bb5+ {[%clk 0:02:58]}  Nbd7 {[%clk 0:02:54]} 5. c4 {[%clk 0:02:57]}  a6 {[%clk 0:02:55]} 6. Bxd7+ {[%clk 0:02:55]}  Bxd7 {[%clk 0:02:53]} 7. Nc3 {[%clk 0:02:55]}  b5 {[%clk 0:02:53]} 8. d3 {[%clk 0:02:55]}  c6 {[%clk 0:02:52]} 9. dxc6 {[%clk 0:02:47]}  Bxc6 {[%clk 0:02:52]} 10. Nf3 {[%clk 0:02:47]}  b4 {[%clk 0:02:47]} 11. Na4 {[%clk 0:02:28]}  e6 {[%clk 0:02:34]} 12. O-O {[%clk 0:02:25]}  Be7 {[%clk 0:02:24]} 13. Ne5 {[%clk 0:02:22]}  Bb7 {[%clk 0:02:20]} 14. Be3 {[%clk 0:02:10]}  O-O {[%clk 0:02:18]} 15. Nc5 {[%clk 0:01:40]}  Bc8 {[%clk 0:02:18]} 16. Qf3 {[%clk 0:01:29]}  Bd7 {[%clk 0:02:06]} 17. Ncxd7 {[%clk 0:01:10]}  Nxd7 {[%clk 0:02:05]} 18. d4 {[%clk 0:01:06]}  Nf6 {[%clk 0:01:40]} 19. f5 {[%clk 0:01:03]}  exf5 {[%clk 0:01:36]} 20. Qxf5 {[%clk 0:01:02]}  Qc8 {[%clk 0:01:29]} 21. d5 {[%clk 0:00:46]}  Bc5 {[%clk 0:01:27]} 22. Bxc5 {[%clk 0:00:40]}  Qxc5+ {[%clk 0:01:27]} 23. Kh1 {[%clk 0:00:37]}  Rfe8 {[%clk 0:01:18]} 24. b3 {[%clk 0:00:33]}  a5 {[%clk 0:01:00]} 25. Nd7 {[%clk 0:00:29]}  Nxd7 {[%clk 0:00:38]} 26. Qxf7+ {[%clk 0:00:29]}  Kh8 {[%clk 0:00:38]} 27. Qxd7 {[%clk 0:00:29]}  Rad8 {[%clk 0:00:38]} 28. Qf5 {[%clk 0:00:28]}  a4 {[%clk 0:00:37]} 29. h3 {[%clk 0:00:26]}  a3 {[%clk 0:00:34]} 30. Rf3 {[%clk 0:00:20]}  Qd4 {[%clk 0:00:31]} 31. Raf1 {[%clk 0:00:19]}  h6 {[%clk 0:00:30]} 32. Qg4 {[%clk 0:00:17]}  Qd2 {[%clk 0:00:24]} 33. R3f2 {[%clk 0:00:16]}  Qd3 {[%clk 0:00:22]} 34. Rf7 {[%clk 0:00:15]}  Qc3 {[%clk 0:00:20]} 35. Kh2 {[%clk 0:00:10]}  Qe5+ {[%clk 0:00:19]} 36. Qg3 {[%clk 0:00:09]}  Qb2 {[%clk 0:00:20]} 37. R1f2 {[%clk 0:00:09]}  Qd4 {[%clk 0:00:21]} 38. R2f6 {[%clk 0:00:09]}  Rg8 {[%clk 0:00:19]} 39. Rg6 {[%clk 0:00:09]}  Rde8 {[%clk 0:00:17]} 40. Qf4 {[%clk 0:00:08]}  Re4 {[%clk 0:00:17]} 41. Rxh6+ {[%clk 0:00:07]}  gxh6 {[%clk 0:00:15]} 42. Qxh6# {[%clk 0:00:07]} 1-0


[Site "https://www.chess.com"]

[Event "Titled Tuesday Blitz March 07 Late 2023"]
[White "Hjartarson, Johann"]
[Black "Goltseva, Ekaterina"]
[WhiteFideId "2300044"]
[BlackFideId "24173770"]
[WhiteElo "2416"]
[BlackElo "2200"]
[Result "1-0"]
[Round "11"]
[TimeControl "180+2"]
[Date "2023.03.07"]
[WhiteClock "0:00:12"]
[BlackClock "0:00:06"]

1. e4 {[%clk 0:03:00]}  e5 {[%clk 0:02:56]} 2. Nf3 {[%clk 0:03:00]}  Nf6 {[%clk 0:02:56]} 3. Nxe5 {[%clk 0:02:55]}  Nxe4 {[%clk 0:02:56]} 4. Qe2 {[%clk 0:02:54]}  Qe7 {[%clk 0:02:56]} 5. Qxe4 {[%clk 0:02:54]}  d6 {[%clk 0:02:55]} 6. d4 {[%clk 0:02:53]}  dxe5 {[%clk 0:02:55]} 7. dxe5 {[%clk 0:02:51]}  Nc6 {[%clk 0:02:54]} 8. Nc3 {[%clk 0:02:48]}  Qxe5 {[%clk 0:02:51]} 9. Qxe5+ {[%clk 0:02:44]}  Nxe5 {[%clk 0:02:52]} 10. Bf4 {[%clk 0:02:44]}  Bd6 {[%clk 0:02:48]} 11. Bg3 {[%clk 0:02:36]}  Bf5 {[%clk 0:02:31]} 12. O-O-O {[%clk 0:02:34]}  O-O-O {[%clk 0:02:27]} 13. Nb5 {[%clk 0:02:29]}  a6 {[%clk 0:02:16]} 14. Nxd6+ {[%clk 0:02:29]}  cxd6 {[%clk 0:02:17]} 15. f3 {[%clk 0:02:18]}  f6 {[%clk 0:02:15]} 16. Be2 {[%clk 0:02:11]}  Rd7 {[%clk 0:02:10]} 17. Rd2 {[%clk 0:02:11]}  Kb8 {[%clk 0:01:58]} 18. Rhd1 {[%clk 0:02:09]}  Rc8 {[%clk 0:01:58]} 19. c3 {[%clk 0:02:08]}  Rc6 {[%clk 0:01:49]} 20. h4 {[%clk 0:02:02]}  b5 {[%clk 0:01:48]} 21. Rd4 {[%clk 0:02:00]}  Kc7 {[%clk 0:01:41]} 22. Bf2 {[%clk 0:01:53]}  h5 {[%clk 0:01:36]} 23. g4 {[%clk 0:01:41]}  Bg6 {[%clk 0:01:34]} 24. Bg3 {[%clk 0:01:39]}  Rb6 {[%clk 0:01:25]} 25. g5 {[%clk 0:01:37]}  a5 {[%clk 0:01:18]} 26. a3 {[%clk 0:01:35]}  Kb7 {[%clk 0:01:07]} 27. gxf6 {[%clk 0:01:30]}  gxf6 {[%clk 0:01:06]} 28. Bf2 {[%clk 0:01:29]}  b4 {[%clk 0:00:35]} 29. Rd5 {[%clk 0:01:20]}  bxa3 {[%clk 0:00:35]} 30. Bxb6 {[%clk 0:01:13]}  a2 {[%clk 0:00:34]} 31. Rxa5 {[%clk 0:01:13]}  Kxb6 {[%clk 0:00:27]} 32. Ra6+ {[%clk 0:01:09]}  Kb7 {[%clk 0:00:18]} 33. Rxa2 {[%clk 0:01:08]}  d5 {[%clk 0:00:16]} 34. Ra5 {[%clk 0:00:59]}  Bf7 {[%clk 0:00:11]} 35. f4 {[%clk 0:00:57]}  Nc6 {[%clk 0:00:11]} 36. Rb5+ {[%clk 0:00:54]}  Kc7 {[%clk 0:00:11]} 37. Bf3 {[%clk 0:00:53]}  Ne7 {[%clk 0:00:09]} 38. Rd4 {[%clk 0:00:34]}  Nf5 {[%clk 0:00:09]} 39. Ra4 {[%clk 0:00:33]}  Kc6 {[%clk 0:00:07]} 40. Rb8 {[%clk 0:00:28]}  Kd6 {[%clk 0:00:05]} 41. Rh8 {[%clk 0:00:24]}  Nxh4 {[%clk 0:00:04]} 42. Bxh5 {[%clk 0:00:23]}  Bxh5 {[%clk 0:00:02]} 43. Rxh5 {[%clk 0:00:23]}  Ng2 {[%clk 0:00:03]} 44. Rd4 {[%clk 0:00:21]}  Ne3 {[%clk 0:00:02]} 45. b3 {[%clk 0:00:18]}  Ke6 {[%clk 0:00:02]} 46. Kd2 {[%clk 0:00:17]}  Nf5 {[%clk 0:00:03]} 47. Rxf5 {[%clk 0:00:16]}  Kxf5 {[%clk 0:00:03]} 48. c4 {[%clk 0:00:16]}  Rb7 {[%clk 0:00:02]} 49. Rxd5+ {[%clk 0:00:16]}  Kg4 {[%clk 0:00:03]} 50. Kc3 {[%clk 0:00:16]}  Kxf4 {[%clk 0:00:03]} 51. b4 {[%clk 0:00:16]}  f5 {[%clk 0:00:03]} 52. b5 {[%clk 0:00:16]}  Ke4 {[%clk 0:00:04]} 53. Rd8 {[%clk 0:00:16]}  f4 {[%clk 0:00:04]} 54. Re8+ {[%clk 0:00:16]}  Kf3 {[%clk 0:00:04]} 55. Rf8 {[%clk 0:00:16]}  Ke3 {[%clk 0:00:04]} 56. Kb4 {[%clk 0:00:16]}  Rd7 {[%clk 0:00:04]} 57. b6 {[%clk 0:00:15]}  f3 {[%clk 0:00:04]} 58. c5 {[%clk 0:00:15]}  f2 {[%clk 0:00:04]} 59. Rxf2 {[%clk 0:00:13]}  Kxf2 {[%clk 0:00:04]} 60. c6 {[%clk 0:00:13]}  Rd1 {[%clk 0:00:04]} 61. c7 {[%clk 0:00:12]}  Rb1+ {[%clk 0:00:04]} 62. Kc5 {[%clk 0:00:12]}  Ke3 {[%clk 0:00:05]} 63. Kc6 {[%clk 0:00:11]}  Rc1+ {[%clk 0:00:04]} 64. Kb7 {[%clk 0:00:11]}  Kd4 {[%clk 0:00:04]} 65. c8=Q {[%clk 0:00:12]}  Rxc8 {[%clk 0:00:05]} 66. Kxc8 {[%clk 0:00:12]}  Kc5 {[%clk 0:00:06]} 67. b7 {[%clk 0:00:12]} 1-0


[Site "https://www.chess.com"]